bitfinex/quotes_BTCUSD_20241001
["timestamp","ask_amount","ask_price","bid_price","bid_amount"]
[1727807249300,0.04791885,62394.0,62393.0,0.160274]
[1727807249559,0.04791885,62395.0,62394.0,0.160271]
[1727807249895,0.09590313,62398.0,62397.0,0.160264]
[1727807249896,0.04791885,62398.0,62397.0,0.160264]
[1727807250134,0.07187828,62399.0,62397.0,0.160264]
[1727807250135,0.04791885,62399.0,62398.0,0.160261]
[1727807250375,0.04791885,62399.0,62393.0,0.00164]
[1727807250376,0.05761488,62398.0,62393.0,0.00164]
[1727807250610,0.04791885,62399.0,62397.0,0.160263]
[1727807250847,0.04791885,62398.0,62395.0,0.480803]
[1727807251105,0.04791885,62398.0,62395.0,0.320537]
[1727807251361,0.04791885,62399.0,62397.0,0.160263]
[1727807251628,0.04791885,62399.0,62398.0,0.160261]
[1727807251868,0.1438774,62409.0,62398.0,0.160261]
[1727807251869,0.04791885,62405.0,62404.0,0.160246]
[1727807252094,0.04791885,62405.0,62398.0,0.0789]
[1727807252095,0.04791885,62406.0,62405.0,0.160243]
[1727807252557,0.04791885,62407.0,62405.0,0.320486]
[1727807252807,0.04791885,62408.0,62407.0,0.160238]
[1727807253265,0.04791885,62409.0,62408.0,0.160235]
[1727807253760,0.04791885,62410.0,62409.0,0.160233]
[1727807254488,0.00082,62411.0,62409.0,0.160233]
[1727807254734,0.00082,62411.0,62410.0,0.16023]
[1727807254954,0.00082,62411.0,62405.0,0.320485]
[1727807255183,0.00082,62411.0,62409.0,0.160233]
[1727807255436,0.003,62410.0,62409.0,0.160233]
[1727807255669,0.00082,62411.0,62409.0,0.160233]
[1727807255897,0.00082,62411.0,62403.0,0.320496]
[1727807255898,0.10133052,62410.0,62403.0,0.320496]
[1727807256144,0.160235,62408.0,62405.0,0.160243]
[1727807256376,0.10133052,62410.0,62406.0,0.160239]
[1727807256606,0.26456252,62410.0,62406.0,0.160239]
[1727807256839,0.26456252,62410.0,62400.0,0.320512]
[1727807256840,0.04790201,62409.0,62407.0,0.160238]
[1727807257065,0.04790201,62409.0,62403.0,0.320495]
[1727807257336,0.320488,62405.0,62387.0,0.420578]
[1727807257558,0.160255,62401.0,62393.0,0.24220967]
[1727807257785,0.160252,62402.0,62396.0,0.160265]
[1727807258023,0.160256,62400.0,62395.0,0.320538]
[1727807258218,0.54068338,62402.0,62395.0,0.320538]
[1727807258485,0.3167148,62400.0,62396.0,0.160265]
[1727807258712,0.160259,62399.0,62396.0,0.160265]
[1727807258954,0.16772986,62399.0,62396.0,0.160265]
[1727807259183,0.00747086,62399.0,62393.0,0.01364]
[1727807259411,0.00747086,62399.0,62398.0,0.49105188]
[1727807259640,0.28847679,62405.0,62404.0,0.160246]
[1727807259894,0.24056967,62405.0,62404.0,0.160246]
[1727807260134,0.04790712,62407.0,62404.0,0.320491]
[1727807260364,0.04790712,62409.0,62408.0,0.160235]
[1727807260838,0.07268069,62411.0,62410.0,0.16023]
[1727807260839,0.00082,62411.0,62410.0,0.16023]
[1727807262166,0.00482,62411.0,62410.0,0.16023]
[1727807263341,0.00082,62411.0,62410.0,0.16023]
[1727807263565,0.04794665,62413.0,62412.0,0.160225]
[1727807264030,0.00082,62416.0,62410.0,0.161229]
[1727807264274,0.00082,62416.0,62409.0,0.320463]
[1727807264497,0.33585527,62416.0,62412.0,0.160224]
[1727807264735,0.09674416,62416.0,62412.0,0.160224]
[1727807265032,0.160218,62415.0,62411.0,0.160227]
[1727807265264,0.09674416,62416.0,62409.0,0.320463]
[1727807265489,0.09674416,62416.0,62413.0,0.160222]
[1727807265948,0.16022,62414.0,62411.0,0.160227]
[1727807266171,0.09674416,62416.0,62410.0,0.16023]
[1727807266394,0.09674416,62416.0,62407.0,0.433075]
[1727807266395,0.160221,62414.0,62407.0,0.433075]
[1727807266617,0.160221,62414.0,62409.0,0.320466]
[1727807266849,0.25614516,62414.0,62409.0,0.320466]
[1727807267089,0.160219,62415.0,62412.0,0.160225]
[1727807267318,0.56100667,62415.0,62406.0,0.320478]
[1727807267579,0.65544361,62414.0,62409.0,0.160232]
[1727807267820,0.25614916,62412.0,62406.0,0.320479]
[1727807268050,0.160225,62412.0,62406.0,0.320479]
[1727807268285,0.25614916,62412.0,62408.0,0.160235]
[1727807268516,0.160225,62412.0,62408.0,0.160235]
[1727807268740,0.41637216,62413.0,62408.0,0.160235]
[1727807268966,0.39897104,62412.0,62408.0,0.160235]
[1727807269192,0.161225,62412.0,62408.0,0.160235]
[1727807269391,0.001,62412.0,62409.0,0.160232]
[1727807269881,0.160228,62411.0,62407.0,0.160237]
[1727807270128,0.002,62412.0,62407.0,0.160237]
[1727807270352,0.162227,62412.0,62408.0,0.160235]
[1727807270574,0.160227,62412.0,62408.0,0.160235]
[1727807271036,0.41637316,62413.0,62408.0,0.160235]
[1727807271280,0.23873363,62412.0,62408.0,0.320471]
[1727807271511,0.160226,62412.0,62408.0,0.320471]
[1727807271734,0.25614816,62413.0,62409.0,0.160231]
[1727807271966,0.23972787,62412.0,62409.0,0.160231]
[1727807272192,0.25614816,62413.0,62409.0,0.160231]
[1727807272423,0.0719589,62411.0,62406.0,0.320478]
[1727807273136,0.16024,62407.0,62404.0,0.160244]
[1727807273379,0.160251,62402.0,62399.0,0.160258]
[1727807273609,0.160251,62402.0,62395.0,0.320534]
[1727807273610,0.07196772,62400.0,62395.0,0.320535]
[1727807273827,0.07197037,62400.0,62399.0,0.160258]
[1727807274047,0.00757126,62399.0,62393.0,0.00164]
[1727807274243,0.04797937,62399.0,62398.0,0.160261]
[1727807274471,0.09596049,62402.0,62393.0,0.00164]
[1727807274472,0.00750728,62398.0,62393.0,0.00164]
[1727807274696,0.07197037,62400.0,62395.0,0.160267]
[1727807274697,0.04798165,62397.0,62395.0,0.160267]
[1727807274918,0.16027,62395.0,62393.0,0.00164]
[1727807275154,0.04798165,62396.0,62394.0,0.16027]
[1727807275606,0.07197037,62395.0,62394.0,0.16027]
[1727807275835,0.07197037,62395.0,62393.0,0.00164]
[1727807275836,0.32208744,62395.0,62393.0,0.00164]
[1727807276062,0.41270013,62395.0,62393.0,0.00164]
[1727807276533,0.33313912,62394.0,62393.0,0.00164]
[1727807276757,0.39366594,62394.0,62393.0,0.161914]
[1727807276979,0.1564578,62394.0,62393.0,0.00164]
[1727807277204,0.1564578,62394.0,62393.0,0.00264]
[1727807277681,0.1564578,62394.0,62393.0,0.00164]
[1727807277909,0.1574578,62394.0,62393.0,0.00164]
[1727807278361,0.001,62394.0,62393.0,0.161914]
[1727807278596,0.07297574,62394.0,62393.0,0.161914]
[1727807278807,0.07297528,62394.0,62393.0,0.161914]
[1727807279009,0.09696761,62394.0,62393.0,0.00164]
[1727807279239,0.09996761,62394.0,62393.0,0.00164]
[1727807279466,0.23721153,62394.0,62393.0,0.00164]
[1727807279698,0.23921153,62394.0,62393.0,0.00164]
[1727807279939,0.55594033,62394.0,62393.0,0.00164]
[1727807280174,0.55494033,62394.0,62393.0,0.00164]
[1727807281162,0.55594033,62394.0,62393.0,0.00164]
[1727807281389,0.39566933,62394.0,62393.0,0.00164]
[1727807281624,0.23921153,62394.0,62393.0,0.161914]
[1727807281857,0.002,62394.0,62393.0,0.240314]
[1727807282096,0.07397093,62394.0,62393.0,0.240314]
[1727807282587,0.07297093,62394.0,62393.0,0.240314]
[1727807283044,0.07397093,62394.0,62393.0,0.240314]
[1727807283265,0.07297093,62394.0,62393.0,0.240314]
[1727807283485,0.07197093,62394.0,62393.0,0.243314]
[1727807283964,0.09596253,62395.0,62394.0,0.160271]
[1727807285571,0.09896253,62395.0,62394.0,0.160271]
[1727807285793,0.33613678,62395.0,62394.0,0.160271]
[1727807286504,0.24017425,62395.0,62394.0,0.160271]
[1727807286744,0.24117425,62395.0,62394.0,0.160271]
[1727807287432,0.24117425,62395.0,62393.0,0.08004]
[1727807287694,0.64989271,62394.0,62393.0,0.00164]
[1727807287927,0.55390305,62394.0,62393.0,0.00164]
[1727807289312,0.55490305,62394.0,62393.0,0.00164]
[1727807289976,0.55590305,62394.0,62393.0,0.00164]
[1727807290215,0.85630125,62394.0,62393.0,0.00164]
[1727807290450,0.85630125,62394.0,62379.0,0.24056967]
[1727807290451,0.82503398,62394.0,62379.0,0.24056967]
[1727807290715,0.07197389,62384.0,62382.0,0.160302]
[1727807291153,0.09596519,62385.0,62382.0,0.160302]
[1727807291154,0.07197313,62383.0,62382.0,0.160302]
[1727807291601,0.04798087,62383.0,62382.0,0.160302]
[1727807291827,0.04798087,62385.0,62382.0,0.329603]
[1727807292288,0.04798087,62386.0,62385.0,0.160294]
[1727807292508,0.04798087,62387.0,62386.0,0.38080386]
[1727807292971,0.04798087,62388.0,62386.0,0.22051186]
[1727807293195,0.04798087,62388.0,62387.0,0.160289]
[1727807293478,0.04796541,62388.0,62387.0,0.160289]
[1727807293707,0.04796541,62389.0,62386.0,0.320583]
[1727807293960,0.04796541,62389.0,62388.0,0.160287]
[1727807295321,0.04796541,62389.0,62388.0,0.164287]
[1727807295761,0.04796037,62389.0,62388.0,0.164287]
[1727807296015,0.04796037,62389.0,62388.0,0.168287]
[1727807296268,0.04796037,62389.0,62388.0,0.164287]
[1727807296499,0.001,62389.0,62388.0,0.78146244]
[1727807296730,0.001,62389.0,62388.0,0.77917186]
[1727807296988,0.002,62389.0,62388.0,0.77917186]
[1727807297221,0.002,62389.0,62388.0,0.55866]
[1727807298115,0.04796037,62391.0,62390.0,0.160282]
[1727807299048,0.04796037,62391.0,62388.0,0.402373]
[1727807299049,0.04796037,62391.0,62388.0,0.398373]
[1727807299294,0.04796037,62391.0,62370.0,0.327306]
[1727807299295,0.04895644,62389.0,62383.0,0.320599]
[1727807299528,0.04995644,62389.0,62385.0,0.160293]
[1727807299752,0.04995644,62389.0,62386.0,0.160291]
[1727807299753,0.20924144,62389.0,62386.0,0.160291]
[1727807299980,0.04795644,62389.0,62384.0,0.320593]
[1727807300221,0.04795644,62389.0,62388.0,0.160287]
[1727807300457,0.23139836,62391.0,62389.0,0.160284]
[1727807300678,0.04795609,62390.0,62389.0,0.160284]
[1727807301827,0.04795609,62390.0,62389.0,0.38079586]
[1727807302051,0.07194056,62391.0,62389.0,0.38079586]
[1727807302052,0.04795609,62391.0,62390.0,0.160282]
[1727807302275,0.04795609,62392.0,62389.0,0.64037886]
[1727807302499,0.04795609,62393.0,62392.0,0.160276]
[1727807302726,0.04795609,62394.0,62393.0,0.160274]
[1727807302982,0.04795609,62394.0,62393.0,0.241174]
[1727807303461,0.04795609,62395.0,62394.0,0.160271]
[1727807305276,0.07194056,62397.0,62394.0,0.320542]
[1727807305277,0.04795609,62397.0,62394.0,0.320542]
[1727807305512,0.04795609,62397.0,62396.0,0.160266]
[1727807305513,0.20441389,62397.0,62396.0,0.160266]
[1727807305743,0.1564578,62397.0,62396.0,0.160266]
[1727807306231,0.1564578,62397.0,62394.0,0.320542]
[1727807306456,0.1564578,62397.0,62396.0,0.160266]
[1727807306669,0.003,62397.0,62396.0,0.160266]
[1727807306889,0.04795609,62398.0,62395.0,0.320538]
[1727807307103,0.04795609,62398.0,62397.0,0.160264]
[1727807307319,0.07194056,62399.0,62398.0,0.160261]
[1727807307741,0.07194056,62400.0,62399.0,0.160258]
[1727807308171,0.07194056,62401.0,62400.0,0.160256]
[1727807308431,0.09592075,62402.0,62401.0,0.160253]
[1727807309421,0.24056967,62407.0,62399.0,0.320516]
[1727807309674,0.07197213,62401.0,62400.0,0.160256]
[1727807310397,0.04798188,62402.0,62401.0,0.160253]
[1727807310648,0.07197213,62403.0,62402.0,0.160251]
[1727807310862,0.001,62402.0,62393.0,0.30141186]
[1727807311080,0.09698009,62402.0,62401.0,0.160253]
[1727807311348,0.09598009,62402.0,62401.0,0.160253]
[1727807311587,0.23794314,62402.0,62401.0,0.160253]
[1727807311826,0.11995575,62403.0,62402.0,0.160251]
[1727807312337,0.160251,62402.0,62401.0,0.003]
[1727807312575,0.160251,62402.0,62401.0,0.004]
[1727807312576,0.67522137,62402.0,62401.0,0.004]
[1727807312831,0.160254,62401.0,62398.0,0.16026]
[1727807313074,0.39440399,62400.0,62398.0,0.16026]
[1727807313310,0.160264,62397.0,62394.0,0.160269]
[1727807313552,0.160264,62397.0,62393.0,0.0809]
[1727807313553,0.09604204,62395.0,62393.0,0.241172]
[1727807313794,0.09604204,62395.0,62392.0,0.320549]
[1727807313795,0.09604671,62395.0,62392.0,0.160276]
[1727807314029,0.48733095,62395.0,62393.0,0.160273]
[1727807314251,0.23765439,62394.0,62392.0,0.160276]
[1727807314502,0.23765439,62394.0,62389.0,0.419868]
[1727807314503,0.35771298,62394.0,62390.0,0.320563]
[1727807314739,0.35771298,62394.0,62389.0,0.0993]
[1727807314740,0.09606695,62392.0,62391.0,0.320559]
[1727807314974,0.09606695,62392.0,62391.0,0.160279]
[1727807315689,0.33372134,62392.0,62391.0,0.160279]
[1727807315894,0.09606695,62392.0,62391.0,0.160279]
[1727807316120,0.13326325,62392.0,62389.0,0.480852]
[1727807316349,0.160284,62389.0,62388.0,0.082042]
[1727807316637,0.160284,62389.0,62388.0,0.5629]
[1727807316638,0.23714806,62389.0,62388.0,0.5629]
[1727807316864,0.12013873,62390.0,62389.0,0.160284]
[1727807317109,0.12013873,62391.0,62390.0,0.160282]
[1727807317337,0.12613873,62392.0,62391.0,0.160279]
[1727807317555,0.10212522,62392.0,62391.0,0.256379]
[1727807317810,0.10212522,62392.0,62391.0,0.337579]
[1727807317811,0.07909297,62392.0,62391.0,0.337579]
[1727807318230,0.07209297,62392.0,62391.0,0.337579]
[1727807318456,0.04807177,62392.0,62391.0,0.1773]
[1727807318684,0.04807177,62392.0,62391.0,0.337579]
[1727807319152,0.04807177,62392.0,62391.0,0.342579]
[1727807320418,0.04807177,62392.0,62391.0,0.347579]
[1727807320636,0.24056967,62399.0,62391.0,0.1873]
[1727807320848,0.24056967,62399.0,62398.0,0.160261]
[1727807321269,0.160246,62404.0,62399.0,0.160258]
[1727807321744,0.160248,62403.0,62399.0,0.160258]
[1727807321993,0.001,62399.0,62392.0,0.320553]
[1727807322239,0.160269,62396.0,62392.0,0.160276]
[1727807322447,0.160262,62398.0,62394.0,0.16027]
[1727807322660,0.160265,62397.0,62393.0,0.160274]
[1727807323131,0.17912329,62397.0,62393.0,0.160274]
[1727807323342,0.17912329,62397.0,62394.0,0.16027]
[1727807324496,0.160265,62397.0,62394.0,0.16027]
[1727807324744,0.39702747,62399.0,62391.0,0.001642]
[1727807324745,0.1564578,62396.0,62391.0,0.001642]
[1727807324964,0.160271,62394.0,62391.0,0.16192]
[1727807325893,0.23767662,62393.0,62391.0,0.16292]
[1727807326107,0.23767662,62393.0,62391.0,0.16192]
[1727807326549,0.23767662,62393.0,62391.0,0.16492]
[1727807326766,0.23767662,62393.0,62391.0,0.16192]
[1727807327029,0.24067662,62393.0,62391.0,0.16292]
[1727807327476,0.24067662,62393.0,62391.0,0.16392]
[1727807327921,0.3167338,62392.0,62391.0,0.002642]
[1727807328138,0.36930524,62392.0,62391.0,0.002642]
[1727807328352,0.3167338,62392.0,62391.0,0.002642]
[1727807328567,0.36930809,62392.0,62391.0,0.002642]
[1727807328781,0.36930809,62392.0,62391.0,0.001642]
[1727807329216,0.37330809,62392.0,62391.0,0.001642]
[1727807330283,0.3207338,62392.0,62391.0,0.001642]
[1727807330502,0.004,62392.0,62391.0,0.001642]
[1727807330720,0.24167662,62392.0,62391.0,0.340621]
[1727807330975,0.05207222,62392.0,62391.0,0.440621]
[1727807331212,0.004,62392.0,62391.0,0.440621]
[1727807331423,0.04807222,62395.0,62394.0,0.260271]
[1727807331664,0.04807222,62396.0,62395.0,0.160269]
[1727807331886,0.0480646,62398.0,62395.0,0.480806]
[1727807332196,0.0480646,62398.0,62397.0,0.160264]
[1727807332826,0.0480646,62399.0,62398.0,0.160261]
[1727807333053,0.000821,62402.0,62399.0,0.80128586]
[1727807333267,0.000821,62402.0,62401.0,0.160253]
[1727807333479,0.000821,62402.0,62401.0,0.3167108]
[1727807335094,0.000821,62402.0,62401.0,0.3257108]
[1727807335334,0.0728939,62411.0,62410.0,0.16023]
[1727807335598,0.000821,62414.0,62413.0,0.236723]
[1727807337945,0.000821,62414.0,62413.0,0.243723]
[1727807338470,0.000821,62414.0,62413.0,0.254723]
[1727807338591,0.000821,62414.0,62413.0,0.247723]
[1727807338824,0.000821,62414.0,62413.0,0.238723]
[1727807339264,0.000821,62414.0,62413.0,0.239723]
[1727807339513,0.000821,62414.0,62413.0,0.238723]
[1727807339748,0.000821,62414.0,62413.0,0.002]
[1727807339966,0.161041,62414.0,62410.0,0.160229]
[1727807340203,0.161041,62414.0,62407.0,0.0775]
[1727807340204,0.320453,62412.0,62407.0,0.0775]
[1727807340431,0.320458,62411.0,62405.0,0.160241]
[1727807340665,0.160229,62411.0,62407.0,0.160237]
[1727807341354,0.16023,62411.0,62405.0,0.320483]
[1727807341586,0.1564578,62413.0,62405.0,0.160241]
[1727807341587,0.160231,62410.0,62405.0,0.160241]
[1727807341817,0.160237,62408.0,62404.0,0.160244]
[1727807342032,0.160235,62408.0,62404.0,0.160245]
[1727807342510,0.1564578,62410.0,62409.0,0.160233]
[1727807342755,0.1564578,62410.0,62408.0,0.160235]
[1727807343008,0.31290458,62410.0,62405.0,0.320486]
[1727807343231,0.1564578,62410.0,62406.0,0.32048]
[1727807343671,0.04795026,62411.0,62404.0,0.22051186]
[1727807343907,0.04795026,62412.0,62411.0,0.160228]
[1727807344140,0.28934093,62414.0,62412.0,0.082]
[1727807344365,0.04877126,62414.0,62413.0,0.160223]
[1727807344615,0.000821,62414.0,62413.0,0.160223]
[1727807344869,0.24139067,62414.0,62413.0,0.160223]
[1727807345098,0.000821,62414.0,62413.0,0.160223]
[1727807346947,0.000821,62414.0,62413.0,0.161223]
[1727807347433,0.000821,62414.0,62413.0,0.160223]
[1727807347880,0.000821,62414.0,62413.0,0.169223]
[1727807348114,0.3174988,62414.0,62413.0,0.009]
[1727807348335,0.3174988,62414.0,62405.0,0.397085]
[1727807348336,0.160226,62412.0,62409.0,0.160232]
[1727807348526,0.1564578,62412.0,62407.0,0.322114]
[1727807348776,0.1564578,62412.0,62411.0,0.160228]
[1727807349000,0.1564578,62412.0,62409.0,0.320465]
[1727807349248,0.3166838,62412.0,62408.0,0.160234]
[1727807349681,0.1564578,62412.0,62409.0,0.160232]
[1727807349896,0.1564578,62412.0,62409.0,0.161232]
[1727807350121,0.1564578,62412.0,62411.0,0.160228]
[1727807350364,0.1564578,62412.0,62410.0,0.16023]
[1727807350826,0.04795026,62413.0,62412.0,0.160225]
[1727807351049,0.04877126,62414.0,62413.0,0.160223]
[1727807351299,0.000821,62414.0,62413.0,0.160223]
[1727807351961,0.000821,62414.0,62413.0,0.24332719]
[1727807352850,0.000821,62414.0,62413.0,0.33792719]
[1727807353095,0.000821,62414.0,62413.0,0.341723]
[1727807353523,0.000821,62414.0,62413.0,0.344723]
[1727807353834,0.000821,62414.0,62413.0,0.45689258]
[1727807354060,0.000821,62414.0,62413.0,0.61035038]
[1727807354292,0.000821,62414.0,62413.0,0.61735038]
[1727807354526,0.00082,62416.0,62415.0,0.336117]
[1727807354777,0.00082,62416.0,62415.0,0.4925748]
[1727807355778,0.00082,62416.0,62415.0,0.4945748]
[1727807356028,0.00082,62416.0,62415.0,0.5085748]
[1727807356748,0.00082,62416.0,62415.0,0.5225748]
[1727807356994,0.0117237,62423.0,62422.0,0.260199]
[1727807357229,0.0117237,62423.0,62422.0,0.56131086]
[1727807358758,0.160557,62439.0,62435.0,0.160166]
[1727807358759,0.0004,62439.0,62435.0,0.160166]
[1727807359020,0.0004,62439.0,62435.0,0.46141509]
[1727807359338,0.0004,62439.0,62435.0,0.61493566]
[1727807359551,0.0004,62439.0,62435.0,0.70633566]
[1727807360031,0.0004,62439.0,62435.0,0.54987786]
[1727807360250,0.0004,62439.0,62435.0,0.56387786]
[1727807362104,0.0004,62439.0,62435.0,0.57633678]
[1727807362568,0.0004,62439.0,62435.0,0.73279458]
[1727807362796,0.24056967,62450.0,62449.0,0.16013]
[1727807363027,0.24056967,62450.0,62449.0,0.38064186]
[1727807363490,0.24056967,62450.0,62449.0,0.16013]
[1727807363718,0.000821,62455.0,62452.0,0.16012]
[1727807363973,0.000821,62455.0,62449.0,0.320261]
[1727807364205,0.160123,62452.0,62444.0,0.320286]
[1727807364427,0.1564578,62451.0,62448.0,0.160132]
[1727807364658,0.1564578,62451.0,62449.0,0.004]
[1727807364884,0.1564578,62451.0,62450.0,0.160128]
[1727807365346,0.1564578,62451.0,62449.0,0.005]
[1727807365801,0.1564578,62451.0,62447.0,0.160134]
[1727807366028,0.000821,62455.0,62450.0,0.001]
[1727807366256,0.1564578,62454.0,62453.0,0.16012]
[1727807366491,0.1564578,62454.0,62450.0,0.320254]
[1727807366680,0.1564578,62454.0,62451.0,0.160125]
[1727807367378,0.1564578,62454.0,62449.0,0.320259]
[1727807367617,0.000821,62455.0,62454.0,0.160117]
[1727807367866,0.000821,62455.0,62452.0,0.160121]
[1727807368326,0.000821,62455.0,62454.0,0.160117]
[1727807368543,0.160937,62455.0,62451.0,0.160123]
[1727807368727,0.160937,62455.0,62453.0,0.160119]
[1727807368728,0.000821,62455.0,62453.0,0.160119]
[1727807369253,0.000821,62455.0,62450.0,0.320254]
[1727807369480,0.000821,62455.0,62453.0,0.160119]
[1727807369690,0.000821,62455.0,62454.0,0.160117]
[1727807373810,0.000821,62455.0,62450.0,0.320254]
[1727807374028,0.02591815,62455.0,62452.0,0.160122]
[1727807374248,0.02591815,62455.0,62441.0,0.29911186]
[1727807374249,0.18237595,62455.0,62441.0,0.29911186]
[1727807374461,0.18237595,62455.0,62442.0,0.1]
[1727807374679,0.18237595,62455.0,62451.0,0.160125]
[1727807375117,0.02591815,62455.0,62454.0,0.160117]
[1727807376030,0.000821,62455.0,62454.0,0.160117]
[1727807376272,0.000821,62455.0,62454.0,0.163319]
[1727807376905,0.000821,62455.0,62454.0,0.169319]
[1727807377626,0.23467467,62464.0,62463.0,0.160094]
[1727807378085,0.160084,62468.0,62463.0,0.160094]
[1727807378312,0.002921,62477.0,62463.0,0.160094]
[1727807378527,0.160084,62467.0,62463.0,0.160094]
[1727807378752,0.160084,62467.0,62462.0,0.320193]
[1727807378983,0.000921,62477.0,62464.0,0.160092]
[1727807379208,0.02509246,62469.0,62464.0,0.160092]
[1727807379664,0.24056967,62472.0,62464.0,0.160092]
[1727807380130,0.24056967,62473.0,62464.0,0.235792]
[1727807381278,0.24056967,62473.0,62464.0,0.23899364]
[1727807381501,0.24056967,62473.0,62464.0,0.24199364]
[1727807381939,0.24056967,62473.0,62464.0,0.24299364]
[1727807382175,0.000821,62474.0,62464.0,0.24299364]
[1727807382403,0.24056967,62472.0,62464.0,0.34199364]
[1727807382624,0.24056967,62472.0,62464.0,0.50747425]
[1727807382849,0.24056967,62472.0,62464.0,0.51447425]
[1727807383066,0.02508858,62470.0,62464.0,0.51447425]
[1727807383302,0.02508858,62470.0,62464.0,0.51147425]
[1727807383531,0.02508858,62470.0,62464.0,0.51447425]
[1727807383972,0.02508858,62470.0,62464.0,0.51147425]
[1727807384451,0.02508858,62470.0,62464.0,0.51847425]
[1727807385342,0.24056967,62472.0,62471.0,0.38058586]
[1727807385780,0.000821,62474.0,62473.0,0.160069]
[1727807386005,0.000821,62474.0,62473.0,0.237569]
[1727807387055,0.000821,62474.0,62473.0,0.245569]
[1727807387713,0.000821,62474.0,62473.0,0.168069]
[1727807387928,0.000821,62474.0,62473.0,0.008]
[1727807388349,0.000821,62474.0,62473.0,0.168069]
[1727807388594,0.000821,62474.0,62473.0,0.176069]
[1727807389486,0.000821,62474.0,62473.0,0.016]
[1727807389686,0.5129768,62474.0,62473.0,0.016]
[1727807390353,1.8138768,62474.0,62473.0,0.016]
[1727807390798,1.8138768,62474.0,62473.0,0.008]
[1727807391021,1.8158768,62474.0,62473.0,0.008]
[1727807391256,1.8158768,62474.0,62473.0,0.001]
[1727807391257,1.8409667,62474.0,62473.0,0.001]
[1727807391482,1.7426347,62474.0,62473.0,0.001]
[1727807391701,1.7196347,62474.0,62473.0,0.002]
[1727807392212,1.7196347,62474.0,62473.0,0.001]
[1727807392457,1.7196347,62474.0,62473.0,0.002]
[1727807392913,1.7196347,62474.0,62473.0,0.001]
[1727807393132,1.5595687,62474.0,62462.0,0.24056967]
[1727807393350,0.160082,62468.0,62464.0,0.160091]
[1727807393563,0.159982,62468.0,62464.0,0.160091]
[1727807394470,0.160079,62469.0,62463.0,0.320188]
[1727807394702,0.001,62468.0,62465.0,0.160088]
[1727807394938,0.001,62468.0,62467.0,0.160084]
[1727807395177,0.001,62468.0,62464.0,0.001]
[1727807395410,0.001,62468.0,62465.0,0.160088]
[1727807395630,0.169083,62468.0,62464.0,0.002]
[1727807395849,0.009,62468.0,62464.0,0.16373]
[1727807396111,0.160088,62466.0,62464.0,0.00264]
[1727807396354,0.160089,62465.0,62464.0,0.00164]
[1727807396573,0.3165468,62465.0,62464.0,0.00164]
[1727807397268,0.3165468,62465.0,62464.0,0.00264]
[1727807397494,0.3165468,62465.0,62464.0,0.00164]
[1727807397720,0.3215468,62465.0,62464.0,0.00164]
[1727807398845,0.3265468,62465.0,62464.0,0.00164]
[1727807399525,0.35163965,62465.0,62464.0,0.00164]
[1727807400314,0.40253965,62465.0,62464.0,0.00164]
[1727807400595,1.94243003,62465.0,62464.0,0.00164]
[1727807400872,1.94243003,62465.0,62447.0,0.24056967]
[1727807400873,0.22051186,62454.0,62447.0,0.24056967]
[1727807401125,0.160133,62448.0,62447.0,0.24056967]
[1727807401375,0.160133,62448.0,62439.0,0.24221167]
[1727807401376,0.160153,62440.0,62439.0,0.24221167]
[1727807401600,0.3166108,62440.0,62439.0,0.001642]
[1727807402126,0.55718047,62440.0,62439.0,0.001642]
[1727807402419,0.3166108,62440.0,62439.0,0.001642]
[1727807402717,0.69649408,62440.0,62439.0,0.001642]
[1727807402948,0.84782666,62440.0,62439.0,0.001642]
[1727807403189,2.38129633,62440.0,62439.0,0.003642]
[1727807403452,0.160205,62420.0,62419.0,0.001642]
[1727807403722,0.1564578,62420.0,62419.0,0.001642]
[1727807404172,0.3166628,62420.0,62419.0,0.001642]
[1727807404645,0.1564578,62420.0,62419.0,0.001642]
[1727807405143,0.02511014,62426.0,62419.0,0.001642]
[1727807405380,0.1564578,62420.0,62419.0,0.001642]
[1727807405614,0.1614578,62420.0,62419.0,0.001642]
[1727807405871,0.3216628,62420.0,62419.0,0.001642]
[1727807406096,0.3226628,62420.0,62419.0,0.001642]
[1727807406558,0.1624578,62420.0,62419.0,0.001642]
[1727807406774,0.1564578,62420.0,62419.0,0.001642]
[1727807406981,0.1564578,62420.0,62419.0,0.161849]
[1727807407194,0.1634578,62420.0,62419.0,0.001642]
[1727807407824,0.1674578,62420.0,62419.0,0.001642]
[1727807408058,0.015,62420.0,62419.0,0.161849]
[1727807408760,0.011,62420.0,62419.0,0.161849]
[1727807408978,0.004,62420.0,62419.0,0.160207]
[1727807409425,0.005,62420.0,62419.0,0.160207]
[1727807409859,0.005,62420.0,62419.0,0.238307]
[1727807410077,0.03010582,62420.0,62419.0,0.238307]
[1727807410316,0.005,62420.0,62419.0,0.238307]
[1727807410753,0.02510617,62424.0,62419.0,0.0781]
[1727807410973,0.02510617,62424.0,62423.0,0.49088285]
[1727807412104,0.02610617,62424.0,62423.0,0.49088285]
[1727807412588,0.02510617,62424.0,62423.0,0.49088285]
[1727807412814,0.02610617,62424.0,62423.0,0.49088285]
[1727807413040,0.24056967,62442.0,62441.0,0.160151]
[1727807413513,0.24056967,62442.0,62440.0,0.320306]
[1727807413514,0.24056967,62442.0,62440.0,0.160151]
[1727807413766,0.320269,62448.0,62434.0,0.33068585]
[1727807413767,0.40070567,62447.0,62439.0,0.320312]
[1727807414034,0.40070567,62447.0,62432.0,0.320345]
[1727807414035,0.24056967,62440.0,62432.0,0.320345]
[1727807414287,0.39237847,62446.0,62438.0,0.160157]
[1727807414519,0.40071667,62443.0,62438.0,0.160157]
[1727807414767,0.1564578,62442.0,62438.0,0.160157]
[1727807415324,0.1564578,62442.0,62424.0,0.1685]
[1727807415562,0.160167,62435.0,62431.0,0.160176]
[1727807415804,0.160167,62435.0,62429.0,0.320363]
[1727807415805,0.3166278,62434.0,62429.0,0.160181]
[1727807416280,0.3166278,62434.0,62424.0,0.488886]
[1727807416281,0.160172,62433.0,62428.0,0.160183]
[1727807416542,0.160172,62433.0,62425.0,0.320379]